Cogmind - Beta 13 @@@ ROGUE MODE // 2024.05.03 @ 13:42:05 Player: Mylar Result: Destroyed by G-34 Mercenary with Small Laser Performance ------------- Evolutions (1) 500 Regions Visited (3) 600 Robots Destroyed (54) 270 Value Destroyed (1582) 1582 Prototype IDs (0) 0 Alien Tech Used (0) 0 Bonus (235) 235 TOTAL SCORE: 3187 Bonus ------- High Alert Combat Kills 175 Follower Combat Kills 60 Cogmind --------- Core Integrity 0/400 Matter 350/400 Energy 98/100 System Corruption 4% Temperature Cool (6) Movement Treading (145) Location -9/Storage Parts ------- > --- POWER (1) -------- (None) > --- PROPULSION (2) --- Advanced Treads Advanced Treads > --- UTILITY (4) ------ Small Storage Unit Medium Matter Pod Signal Interpreter Improved Targeting Computer > --- WEAPON (2) ------- Mini Grenade Launcher Mini Grenade Launcher > --- INVENTORY (8) ---- Large Matter Pod (94) Targeting Computer Light Assault Rifle Heavy Assault Rifle Rocket Launcher Mini Grenade Launcher Peak State ------------ > --- POWER ------------ Light Nuclear Core > --- PROPULSION ------- Advanced Treads Advanced Treads > --- UTILITY ---------- Small Storage Unit Sensor Array Signal Interpreter Seismic Detector > --- WEAPON ----------- Heavy Assault Rifle Heavy Assault Rifle > --- INVENTORY -------- Ion Engine Advanced Treads Advanced Treads Wheel Tractor Beam Heavy Assault Rifle Heavy Assault Rifle Grenade Launcher [Rating: 18] Favorites ----------- Power Light Nuclear Core Engine Ion Engine Power Core Light Nuclear Core Propulsion Advanced Treads Treads Advanced Treads Wheel Wheel Utility Small Storage Unit Device Sensor Array Storage Small Storage Unit Processor Signal Interpreter Protection Light Armor Plating Weapon Heavy Assault Rifle Ballistic Gun Heavy Assault Rifle Launcher Rocket Launcher Build | -11 -10 -9 -9 ------- Run | Yrd Mat Mat Sto Slots Evolved 2 | . . 2 . Power . | . . . . Propulsion . | . . . . Utility 2 | . . 2 . Weapon . | . . . . Parts Attached 53 | 7 2 36 8 Power 6 | 1 . 4 1 Engine 4 | 1 . 2 1 Core 2 | . . 2 . Reactor . | . . . . Propulsion 13 | 2 . 11 . Treads 11 | . . 11 . Leg . | . . . . Wheel 2 | 2 . . . Hover . | . . . . Flight . | . . . . Utility 17 | 2 . 13 2 Device 10 | 1 . 9 . Storage 2 | 1 . . 1 Processor 2 | . . 1 1 Hackware . | . . . . Protection 3 | . . 3 . Artifact . | . . . . Weapon 17 | 2 2 8 5 Energy Gun . | . . . . Energy Cannon . | . . . . Ballistic Gun 12 | 2 2 6 2 Ballistic Cannon . | . . . . Launcher 5 | . . 2 3 Special Weapon . | . . . . Impact Weapon . | . . . . Slashing Weapon . | . . . . Piercing Weapon . | . . . . Special Melee Weapon . | . . . . Unidentified Prototypes . | . . . . Parts Lost 16 | . . 15 1 Power 4 | . . 3 1 Propulsion 3 | . . 3 . Utility 4 | . . 4 . Weapon 5 | . . 5 . Highest Loss Streak 12 | . . 12 1 To Critical Strikes . | . . . . Average Slot Usage (%) 91 | . 100 93 80 Engine 4 | . 14 2 5 Core 4 | . . 6 . Treads 18 | . . 20 22 Wheel 2 | . 28 . . Device 10 | . 14 13 . Storage 12 | . 14 11 18 Processor 10 | . . 11 12 Protection 4 | . . 5 . Ballistic Gun 18 | . 28 21 8 Launcher 3 | . . . 13 Naked Turns . | . . . . Heaviest Build 22 | 15 17 22 17 Greatest Support 44 | 20 20 44 44 Greatest Overweight (x) 4 | . . 4 . Average Overweight (x) . | . . . . Largest Inventory Capacity 8 | 8 8 8 8 Average Capacity 7 | 7 8 8 8 Most Carried 8 | 5 8 8 7 Average Carried 6 | 1 6 7 3 Final Capacity 8 | 8 8 8 8 Final Carried 8 | 1 8 1 6 Class Distribution -------------------- 90% | Mutant 9% | Scavenger-Mutant Dominant Class ---------------- Mutant | -10/Materials Mutant | -9/Materials Mutant | -9/Storage Resources | -11 -10 -9 -9 ----------- Run | Yrd Mat Mat Sto Matter Collected 1831 | 250 . 1110 471 Remotely 201 | . . 201 . Salvage Created 1594 | 28 . 1275 291 Parts 101 | 2 . 77 22 Haulers Intercepted 2 | . . 1 1 Recyclers Shooed 3 | . . 3 . Parts Field Recycled . | . . . . Retrieved Matter . | . . . . Parts Self-Destructed . | . . . . Prevented . | . . . . Kills | -11 -10 -9 -9 ------- Run | Yrd Mat Mat Sto Combat Hostiles Destroyed 40 | . . 28 12 Guns 25 | . . 25 . AOE 15 | . . 3 12 Classes Destroyed 12 | 1 . 9 2 Worker 6 | . . 3 3 Builder 1 | . . 1 . Tunneler 1 | 1 . . . Hauler 2 | . . 1 1 Recycler 1 | . . 1 . Mechanic 2 | . . 1 1 Watcher 1 | . . 1 . Swarmer 4 | . . 4 . Grunt 28 | . . 18 10 Duelist 1 | . . . 1 Protector 1 | . . . 1 Sentry 6 | . . 6 . Best Kill Streak 9 | 1 . 9 6 Combat Bots Only 8 | . . 8 5 Max Kills in Single Turn 4 | 1 . 2 4 Gunslinging . | . . . . Exploded 3 | . . 1 3 Melee . | . . . . Uniques/NPCs Destroyed . | . . . . Combat | -11 -10 -9 -9 -------- Run | Yrd Mat Mat Sto Hostile Shots Fired 270 | . . 245 25 Missed 83 | . . 74 9 Damage Taken 2411 | . . 2099 312 Core 406 | . . 331 75 Absorbed by Shields . | . . . . Regen/Repaired (Parts) 207 | . . 207 . Core Remaining (%) 100 | 100 100 . . Volleys Fired 135 | 1 . 113 21 Largest 2 | 2 . 2 2 Hottest 60 | 40 . 53 60 Shots Fired 247 | 2 . 214 31 Gun 216 | 2 . 205 9 Cannon . | . . . . Launcher 31 | . . 9 22 Special . | . . . . Kinetic 216 | 2 . 205 9 Thermal . | . . . . Explosive 31 | . . 9 22 Electromagnetic . | . . . . Robot Hit Streak 10 | 2 . 9 10 Robot Miss Streak 6 | . . 6 3 Penetration Max . | . . . . Secondary Targets . | . . . . Shots Hit Robots 149 | 2 . 127 20 Core Hits 93 | 1 . 60 32 Critical Kills . | . . . . Critical Parts Destroyed 1 | . . 1 . Critical Strikes 1 | . . 1 . Destroy 1 | . . 1 . Melee Attacks . | . . . . Impact . | . . . . Slashing . | . . . . Piercing . | . . . . Sneak Attacks . | . . . . Combat Hostiles . | . . . . Follow-up Attacks . | . . . . Damage Inflicted 4072 | 26 . 2378 1668 Guns 2086 | 26 . 1956 104 Cannons . | . . . . Explosions 1979 | . . 422 1557 Melee . | . . . . Ramming 7 | . . . 7 Kinetic 2086 | 26 . 1956 104 Thermal . | . . . . Explosive 1979 | . . 422 1557 Electromagnetic . | . . . . Impact . | . . . . Slashing . | . . . . Piercing . | . . . . Highest Corruption 4 | . . 3 4 Average Corruption 3 | . . 2 3 Corruption Purged . | . . . . Corruption Blocked . | . . . . Effects 13 | . . 4 9 Message Errors 3 | . . 1 2 Matter Fused 3 | . . 1 2 Heat Flow Errors 2 | . . 2 . Data Loss (minor) 2 | . . . 2 Misfires 1 | . . . 1 Weapon Failures 2 | . . . 2 Overload Shots . | . . . . Overflow Damage 42 | . . . 42 Projectiles . | . . . . Explosions 42 | . . . 42 Melee . | . . . . Knockbacks . | . . . . Impact . | . . . . Kinetic . | . . . . Secondary . | . . . . Self-Inflicted Damage 141 | . . 8 133 Shots 5 | . . 1 4 Rammed 2 | . . . 2 Targets Rammed 2 | . . . 2 Kicked . | . . . . Crushed . | . . . . Highest Temperature 265 | . . 265 1 Average Temperature 34 | . . 35 1 Received Heat Transfer 912 | . . 810 102 Siege Activations . | . . . . Robots Corrupted . | . . . . Combat Hostiles . | . . . . Parts Fried . | . . . . Impact Corruptions . | . . . . Robots Melted . | . . . . Combat Hostiles . | . . . . Parts Melted . | . . . . Heat Transferred . | . . . . Parts Sabotaged . | . . . . Parts Stolen . | . . . . Parts Stripped . | . . . . Power Chain Reactions . | . . . . Alert | -11 -10 -9 -9 ------- Run | Yrd Mat Mat Sto Peak Influence 748 | 5 23 640 748 Initial 270 | . 3 9 270 Average 278 | 2 4 288 390 Maximum Alert Level 3 | . . 2 3 Low Security (%) 28 | 100 100 25 . Level 1 53 | . . 58 66 Level 2 17 | . . 16 30 Level 3 . | . . . 2 Level 4 . | . . . . Level 5 . | . . . . High Security . | . . . . Max Security . | . . . . Squads Dispatched 8 | . . 2 6 Investigation 4 | . . 2 2 Extermination . | . . . . Reinforcement 1 | . . . 1 Assault 2 | . . . 2 Garrison 1 | . . . 1 Intercept . | . . . . Searches Triggered . | . . . . Construction Impeded . | . . . . Haulers Reinforced . | . . . . Active Scanning Responses . | . . . . Cargo Convoy Interrupts . | . . . . Stealth | -11 -10 -9 -9 --------- Run | Yrd Mat Mat Sto Distress Signals 1 | . . 1 . Communications Jammed . | . . . . Distress Signals . | . . . . Times Spotted 67 | . 1 46 20 Peak Tracking Total 8 | . 1 8 6 Tactical Retreats 6 | . . 6 . Traps | -11 -10 -9 -9 ------- Run | Yrd Mat Mat Sto Traps Triggered 4 | . . 4 . Indirectly . | . . . . Trap Hack Attempts . | . . . . Triggered . | . . . . Disarmed . | . . . . Reprogrammed 6 | . 6 . . Reused . | . . . . Traps Extracted . | . . . . Installed . | . . . . Triggered . | . . . . Machines | -11 -10 -9 -9 ---------- Run | Yrd Mat Mat Sto Machines Disabled 10 | . . 6 4 Max in Single Turn 2 | . . 1 2 Machines Repaired . | . . . . Machines Dismantled . | . . . . Machines Sabotaged . | . . . . Overloaded Fab Kills . | . . . . Hacking | -11 -10 -9 -9 --------- Run | Yrd Mat Mat Sto Machines Accessed 10 | . 1 6 3 Terminals 8 | . 1 4 3 Fabricators . | . . . . Repair Stations 1 | . . 1 . Recycling Units . | . . . . Scanalyzers 1 | . . 1 . Garrison Access . | . . . . Total Hacks 35 | . 7 20 8 Successful 14 | . 2 11 1 Failed 21 | . 5 9 7 Catastrophic 2 | . . . 2 Database Lockouts . | . . . . Manual 25 | . 6 13 6 Terminals 29 | . 7 14 8 Fabricators . | . . . . Repair Stations 4 | . . 4 . Recycling Units . | . . . . Scanalyzers 2 | . . 2 . Garrison Access . | . . . . Terminal Hacks 3 | . 1 1 1 Open Door 1 | . . . 1 Terminal Index 1 | . . 1 . Reprogram Traps 1 | . 1 . . Fabricator Hacks . | . . . . Repair Station Hacks 4 | . . 4 . Scan Component 2 | . . 2 . Repair 2 | . . 2 . Recycling Unit Hacks . | . . . . Scanalyzer 2 | . . 2 . Insert Component 1 | . . 1 . Analyze 1 | . . 1 . Garrison Access Hacks . | . . . . Unauthorized Hacks 5 | . 1 4 . Terminals 5 | . 1 4 . Botnet 5 | . 1 4 . Fabricators . | . . . . Repair Stations . | . . . . Recycling Units . | . . . . Scanalyzers . | . . . . Garrison Access . | . . . . Data Cores Recovered . | . . . . Used . | . . . . Hacking Detections 10 | . 1 5 4 Full Trace Events 4 | . 1 1 2 Feedback Events 1 | . . . 1 Corruption 1 | . . . 1 Feedback Blocked . | . . . . Robot Schematics Acquired . | . . . . Robots Built . | . . . . Authchips . | . . . . Time . | . . . . Total Robot Build Rating . | . . . . Part Schematics Acquired 1 | . . 1 . Parts Built . | . . . . Authchips . | . . . . Time . | . . . . Total Part Build Rating . | . . . . Parts Repaired 2 | . . 2 . Time 76 | . . 76 . Parts Recycled . | . . . . Recycled Matter . | . . . . Retrieved Matter . | . . . . Retrieved Components . | . . . . Parts Scanalyzed 1 | . . 1 . Part Schematics Acquired 1 | . . 1 . Parts Damaged . | . . . . Bothacking | -11 -10 -9 -9 ------------ Run | Yrd Mat Mat Sto Used RIF Installer . | . . . . Robots Hacked . | . . . . Non-combat . | . . . . Combat . | . . . . Robot Hacks Applied . | . . . . Relay Couplers Released . | . . . . Fabnet Peak Effective % . | . . . . Robots Rewired . | . . . . Allies Hacked . | . . . . Hacks Repelled . | . . . . Allies | -11 -10 -9 -9 -------- Run | Yrd Mat Mat Sto Total Allies 2 | . . . 2 Largest Group 2 | . . . 2 Highest-Rated Group 62 | . . . 62 Highest-Rated Ally 31 | . . . 31 Total Orders . | . . . . Ally Attacks 6 | . . . 6 Total Damage 106 | . . . 106 Kills 2 | . . . 2 Allies Corrupted . | . . . . Allies Melted . | . . . . Intel | -11 -10 -9 -9 ------- Run | Yrd Mat Mat Sto Robot Analysis Total . | . . . . Derelict Logs Recovered . | . . . . Drone Launches . | . . . . Drone Recoveries . | . . . . Exploration | -11 -10 -9 -9 ------------- Run | Yrd Mat Mat Sto Turns Passed 1645 | 56 129 1111 349 Spaces Moved 815 | 55 139 431 190 Core 19 | 17 . 2 . Treads 584 | . . 394 190 Legs . | . . . . Wheels 212 | 38 139 35 . Hover . | . . . . Flight . | . . . . Fastest Speed 50 | 50 80 80 145 Average Speed 128 | 70 80 144 145 Slowest Speed 250 | 80 80 250 145 Overloaded Moves . | . . . . Propulsion Burnouts . | . . . . Robots Hopped . | . . . . Cave-ins Triggered . | . . . . Exploration Rate (%) 28 | 3 28 39 42 Regions Visited 3 Branch Regions 1 Pre-discovered Areas . | . . . . Known Exits Taken 1 | . . 1 . Unknown Exits Taken 2 | 1 1 . . Scrap Searched . | . . . . Spaces Dug . | . . . . Terrain Destroyed 217 | . . 50 167 Melee . | . . . . Projectile . | . . . . AOE 217 | . . 50 167 Terrain Rammed . | . . . . Walls Destroyed . | . . . . Machines Disabled . | . . . . Actions | -11 -10 -9 -9 --------- Run | Yrd Mat Mat Sto Total 1160 | 68 157 707 228 Wait 103 | . 4 99 . Move 812 | 54 138 430 190 Hop . | . . . . Pick Up 38 | 6 10 15 7 Fast Attach 8 | 2 . 5 1 Attach 22 | 5 . 15 2 Detach . | . . . . Swap 23 | . 2 16 5 Drop 17 | . 3 14 . Fire 135 | 1 . 113 21 Melee . | . . . . Ram . | . . . . Kick . | . . . . Crush 2 | . . . 2 Escape Stasis . | . . . . Rewire . | . . . . Trap . | . . . . Miscellaneous . | . . . . Route ------- -11/Scrapyard -10/Materials -9/Materials -9/Storage History --------- Turn | Location | Event 12 | -11/Scrapyard | Discovered new exit (range 16) 57 | -11/Scrapyard | Entered Materials 170 | -10/Materials | Discovered new exit (range 8) 186 | -10/Materials | Entered another Materials area 186 | -9/Materials | Evolved 2 slots: Utility x2 319 | -9/Materials | Build established: Mutant 855 | -9/Materials | Repaired Adv. Treads 901 | -9/Materials | Repaired Adv. Treads 1185 | -9/Materials | Core integrity fell below 50% 1221 | -9/Materials | Core integrity fell below 20% 1255 | -9/Materials | Destroyed 8 combat bots 1258 | -9/Materials | Lost 12 parts (2p3n3u4w) 1264 | -9/Materials | Discovered new exit (range 16) 1296 | -9/Materials | Identified exit to Storage 1297 | -9/Materials | Entered Storage 1472 | -9/Storage | Met a pair of Derelict thieves 1633 | -9/Storage | Garrison activated, responded to threat 1646 | -9/Storage | Destroyed by G-34 Mercenary with Small Laser Last Messages --------------- 01632_ Connecting with Terminal... Feedback: System corruption (+1%). 01632_ ALERT: Suspicious activity at Terminal S002. Dispatching Investigation squad. 01633_ The unstable cave ceiling collapses. 01633_ Transfer Shaft disabled. 01633_ G-34 Mercenary calls for garrison reinforcements. 01633_ ALERT: Activating Garrison Access S001. 01634_ R-06 Scavenger collects Aluminum Leg. 01636_ System corrupted: Mni. Grenade Launcher failed to launch. 01636_ G-34 Mercenary destroyed. 01636_ Destroyed Weight Redist. System. 01636_ Terminal disabled. 01638_ R-06 Scavenger collects Aluminum Leg. 01639_ A-02 Transporter destroyed. 01641_ R-06 Scavenger collects Ion Engine. 01643_ The unstable cave ceiling collapses. 01645_ K-01 Serf cleans the Transfer Shaft. Map ----- +----------------------------------------------------+ | ????????????????##### #??????????????????# | | ????????????????# # # # #??????????????????#### | | ????????????????# # #?????????????????????? | | ????????????????## #?????????????????????? | | ?????????????????# #######?????????????????? | | ?????????????????## #?????????????????? | | ??????????????????## #?????????????????? | | ??????????????????# # #?????????????????? | | ??????????????????# ######?????????????????? | | ??????????????????## #??????????????????????? | | ??????????????????# #??????????????????????? | | ??????????????????## #??????????????????????? | | ??????????????????## #??????????????????????? | | ??????????????????# #??????????????????????? | | ??????????????????# ###??????????????????????? | | ??????????????????# #???????????????????????? | | ??????????????????# #???????????????????????? | | ??????????????????### #???????????????????????? | | ????????????????????# #???????????????????????? | | ????????????????????# ##???????????????????????? | | ?????????????######## #????????????????????????? | | ?????????????# #????????????????????????? | | ?????????????# #????????????????????????? | | ?????????????# T ######???????????????????? | | ?????????????# r #####???????????????? | | ?????????????# ]r @ g gg #?????????? | | ?????????????##^ [ Ta ??????????? | | ??????????????# [ [ g #?????????? | | ??????????????# "" [ ### #?????????? | | ??????????????# " #????####?????????? | | ??????????????#^ "" ????????????????? | | ??????????????# # ???????????????? | | ??????????????# * #??????????????? | | ??????????????# ^k""" #??????????????? | | ??????????????# """a " "" "#??????????????? | | ??????????????#? ?"" + """"" T#??????????????? | | ??????????????? ???? ? """"?? "#??????????????? | | ????????????????????? ? ????? ???????????????? | | ?????????????????????#+#?#???????????????????????? | | ?????????????????????????????????????????????????? | | ?????????????????????????????????????????????????? | | ?????????????????????????????????????????????????? | | ?????????????????????????????????????????????????? | | ?????????????????????????????????????????????????? | | ?????????????????????????????????????????????????? | | ?????????????????????????????????????????????????? | | ?????????????????????????????????????????????????? | | ?????????????????????????????????????????????????? | | ?????????????????????????????????????????????????? | | ?????????????????????????????????????????????????? | +----------------------------------------------------+ Best States ------------- Heat Dissipation 28 Energy Generation 14 Energy Capacity 250 Matter Stores 400 Matter Capacity 400 Sight Range 16 Robot Scan Range 14 Terrain Scan Density 10 Armor Coverage 300 Evasion (%) 50 Targeting Accuracy 6 Recoil Reduction 2 Item Schematics ----------------- Adv. Treads | -9/Materials | Scanalyzed Robot Schematics ------------------ None Fabricated ------------ Nothing Alien Tech Used ----------------- None Achievements -------------- None Challenges ------------ None Game ------ Seed InsulationMasterClaws Manual? 0 Play Time 00:39:28 Cumulative 103.4 hours Start 2024.05.03 @ 12:59:49 End 2024.05.03 @ 13:42:05 Sessions 1 Manual Loads 0 Difficulty Rogue Special Mode None Game No. 21 Rogue 21 Adventurer 0 Explorer 0 Win Type - Total 0 Types 0/0/0/0/0/0/0/0/0 Lore% 18 Gallery% 19 Achievement% 17 Wizard Run 0 Options --------- Layout 1 ASCII 0 Keyboard 0 Movement Mouse Keybinds 0 Fullscreen 1 Font 24/Smallcaps Map View 50x35 Zoom Use 0% Tactical HUD 1 Map Filters NONE Filters NONE Steam 1 RUN: 089a6fe2-3478-4e53-beca-6096e6c86bf6